bitfinex-derivatives/quotes_ETHF0:USTF0_20250701
["timestamp","ask_amount","ask_price","bid_price","bid_amount"]
[1751383538967,0.6635,2425.0,2424.8,0.8245]
[1751383539266,0.99617966,2424.9,2424.8,0.8245]
[1751383539662,0.99617966,2424.9,2424.7,0.82454]
[1751383539859,0.82452,2424.8,2424.6,2.0326]
[1751383540064,0.82455,2424.8,2424.7,37.525]
[1751383540566,0.82455,2424.7,2424.6,12.5685]
[1751383540767,4.08591,2425.1,2424.6,0.6595]
[1751383540962,0.82461,2424.6,2424.5,37.525]
[1751383541167,5.87091449,2424.9,2424.5,37.525]
[1751383541369,7.93216449,2424.9,2424.1,0.6595]
[1751383541569,0.82473,2424.2,2424.1,0.6595]
[1751383541769,0.82473,2424.2,2424.1,26.2755]
[1751383542765,0.82476,2424.1,2424.0,11.908]
[1751383542972,0.82475,2424.2,2424.0,37.522]
[1751383543474,0.7018,2424.3,2424.0,37.522]
[1751383543674,0.7018,2424.3,2424.1,0.82475]
[1751383543875,1.53128,2424.4,2424.0,37.522]
[1751383544172,1.53128,2424.4,2424.1,0.82473]
[1751383544372,0.82469,2424.3,2424.1,1.3902]
[1751383544574,0.82473,2424.2,2424.1,1.3902]
[1751383544971,0.82471,2424.3,2424.1,2.21496]
[1751383545370,0.82471,2424.3,2424.1,1.3902]
[1751383545572,0.82463,2424.5,2424.3,0.82468]
[1751383545771,0.82463,2424.5,2424.2,1.5499]
[1751383545970,0.82463,2424.5,2424.3,0.82468]
[1751383546171,0.82466,2424.4,2424.3,1.4302]
[1751383546373,0.82469,2424.3,2424.2,0.7252]
[1751383546566,2.0615,2424.6,2424.2,0.7252]
[1751383546774,0.82469,2424.3,2424.2,0.7252]
[1751383547175,0.82469,2424.3,2424.2,38.2462]
[1751383548276,2.06165,2424.4,2423.7,0.6576]
[1751383548479,0.82476,2424.1,2424.0,11.908]
[1751383552075,0.82476,2424.1,2424.0,12.73279]
[1751383552675,0.82476,2424.1,2424.0,11.908]
[1751383554780,0.82476,2424.1,2424.0,38.34479]
[1751383554982,0.82476,2424.1,2424.0,37.52]
[1751383555283,0.82476,2424.1,2424.0,38.34479]
[1751383555483,0.82476,2424.1,2424.0,37.52]
[1751383556081,0.82486,2423.9,2423.8,11.906]
[1751383556278,0.82486,2423.9,2423.8,37.518]
[1751383556783,0.82482,2424.0,2423.8,38.34283]
[1751383556983,0.82483,2423.9,2423.8,38.34283]
[1751383557281,0.82483,2423.9,2423.8,38.34183]
[1751383557877,0.82481,2424.0,2423.8,37.517]
[1751383558183,0.82479,2424.1,2423.8,37.517]
[1751383558482,0.82479,2424.1,2423.9,0.8248]
[1751383558684,0.82479,2424.0,2423.9,0.8248]
[1751383558885,0.6766,2424.2,2423.8,39.77083]
[1751383558886,0.82483,2423.9,2423.8,39.77083]
[1751383559084,0.82486,2423.8,2423.7,1.48248]
[1751383559283,0.82486,2423.8,2423.7,11.906]
[1751383559585,0.82486,2423.8,2423.7,37.516]
[1751383560386,1.53906,2423.8,2423.7,37.516]
[1751383560778,1.53906,2423.8,2423.7,11.906]
[1751383561088,2.5404439,2423.8,2423.7,37.517]
[1751383561780,1.0013839,2423.8,2423.7,38.34189]
[1751383562789,1.0013839,2423.8,2423.7,37.517]
[1751383563087,1.0013839,2423.8,2423.7,38.34189]
[1751383563390,0.82477,2424.1,2424.0,0.82478]
[1751383563588,1.00135472,2424.2,2424.0,26.43477]
[1751383563887,1.00135472,2424.1,2424.0,26.43477]
[1751383565192,2.24141,2424.3,2424.1,0.82475]
[1751383565388,2.24141,2424.3,2424.2,25.61]
[1751383565587,1.82637844,2424.3,2424.2,25.61]
[1751383565888,1.00166844,2424.3,2424.2,26.43472]
[1751383566585,0.82476,2424.1,2424.0,0.82478]
[1751383566891,0.82475,2424.2,2424.0,38.33977]
[1751383567094,0.82475,2424.2,2424.1,0.82476]
[1751383567293,0.82475,2424.2,2423.8,2.7577]
[1751383567294,3.06352967,2424.4,2423.8,2.7577]
[1751383567589,0.82483,2423.9,2423.8,13.40124]
[1751383567791,0.82483,2423.9,2423.8,39.00924]
[1751383567991,0.82482,2424.0,2423.9,0.82483]
[1751383568189,1.49838,2424.1,2424.0,0.82479]
[1751383568383,1.49838,2424.1,2423.9,0.8248]
[1751383568384,0.82479,2424.0,2423.9,0.8248]
[1751383568889,0.82479,2424.0,2423.8,39.00923]
[1751383569090,1.49838,2424.1,2423.9,0.8248]
[1751383569288,1.49838,2424.1,2423.8,39.00924]
[1751383569289,0.82483,2423.9,2423.8,39.00924]
[1751383569486,0.82483,2423.9,2423.8,26.2784]
[1751383569792,0.82486,2423.8,2423.7,11.906]
[1751383570088,0.82486,2423.8,2423.7,38.33889]
[1751383570393,0.82485,2423.9,2423.8,0.82485]
[1751383570594,1.52732,2424.0,2423.9,0.82483]
[1751383571393,0.82483,2423.9,2423.8,0.82483]
[1751383571693,1.52732,2424.0,2423.9,0.82483]
[1751383571991,1.52732,2424.0,2423.7,37.514]
[1751383572291,0.82486,2423.8,2423.7,38.33888]
[1751383572491,0.82486,2423.8,2423.7,37.514]
[1751383572789,0.82486,2423.8,2423.7,38.33789]
[1751383573492,0.82486,2423.8,2423.7,37.513]
[1751383573893,0.82486,2423.8,2423.7,0.82489]
[1751383574093,0.82486,2423.8,2423.7,38.33689]
[1751383574391,0.7025,2424.0,2423.7,38.33689]
[1751383574392,0.82484,2423.9,2423.8,0.82484]
[1751383574595,0.7025,2424.0,2423.9,0.82483]
[1751383574892,0.82483,2423.9,2423.8,25.606]
[1751383575086,0.82486,2423.8,2423.7,11.906]
[1751383575287,0.82486,2423.8,2423.7,38.33689]
[1751383575486,0.82486,2423.8,2423.7,38.33687]
[1751383575887,0.82486,2423.8,2423.7,26.43089]
[1751383576090,0.82486,2423.8,2423.7,26.42989]
[1751383576688,0.82486,2423.8,2423.7,25.605]
[1751383577093,0.82486,2423.8,2423.7,26.42989]
[1751383577493,0.82486,2423.8,2423.7,25.605]
[1751383577692,0.82486,2423.8,2423.7,26.42989]
[1751383577887,0.82486,2423.9,2423.8,0.82485]
[1751383578591,1.81520316,2423.9,2423.8,0.82485]
[1751383578794,0.82486,2423.8,2423.7,26.42888]
[1751383578996,0.82493,2423.6,2423.5,1.49475]
[1751383579191,0.82493,2423.6,2423.5,27.09975]
[1751383579691,1.52471,2423.7,2423.6,0.82493]
[1751383579888,0.82493,2423.6,2423.5,0.6698]
[1751383580194,0.82493,2423.6,2423.5,26.2738]
[1751383580391,2.76207,2423.7,2423.3,11.902]
[1751383580686,0.825,2423.4,2423.3,37.506]
[1751383580892,0.82503,2423.3,2423.2,0.82505]
[1751383581496,0.6839,2423.6,2423.1,25.604]
[1751383581787,0.82503,2423.3,2423.2,1.50045]
[1751383582098,0.82503,2423.3,2423.2,1.50046]
[1751383582783,0.82502,2423.4,2423.3,0.82501]
[1751383583593,2.18489,2423.5,2423.4,0.825]
[1751383583783,0.82501,2423.4,2423.3,0.82501]
[1751383584091,0.82501,2423.4,2423.2,26.2804]
[1751383584284,0.82503,2423.3,2423.2,27.10544]
[1751383584489,0.82501,2423.4,2423.3,0.82502]
[1751383585490,0.6839,2423.6,2423.2,26.2804]
[1751383585694,0.82499,2423.5,2423.4,0.82498]
[1751383586092,1.81575401,2423.5,2423.4,0.82498]
[1751383586890,0.6839,2423.6,2423.2,28.34306]
[1751383586891,2.06193,2424.1,2423.3,7.91792986]
[1751383587094,0.82483,2423.9,2423.8,0.82483]
[1751383587296,1.8105202,2423.9,2423.8,0.82483]
[1751383587599,0.9856902,2423.9,2423.6,26.3053]
[1751383587789,0.82489,2423.7,2423.6,27.13021]
[1751383588698,0.82489,2423.8,2423.7,0.82488]
[1751383589095,1.81056991,2423.8,2423.7,0.82488]
[1751383589295,7.90549986,2424.0,2423.6,26.3053]
[1751383589494,1.52144,2424.0,2423.9,0.82483]
[1751383589691,0.98557533,2424.0,2423.9,26.42783]
[1751383589892,1.48158,2424.4,2424.3,0.82469]
[1751383590095,0.9854393,2424.4,2424.3,0.82469]
[1751383590295,7.91663986,2424.9,2424.2,25.602]
[1751383590493,0.98516497,2424.8,2424.3,1.3893]
[1751383590700,0.8246,2424.6,2424.5,0.82462]
[1751383590900,7.29209986,2424.9,2424.4,0.6929]
[1751383591093,1.80967649,2424.8,2424.6,0.82458]
[1751383591299,2.16698,2425.0,2424.5,38.8923]
[1751383591595,0.82443,2425.1,2424.9,0.82446]
[1751383591902,0.82441,2425.2,2425.0,0.82444]
[1751383592105,2.06067,2425.6,2425.2,0.82436]
[1751383592106,5.85539986,2425.6,2425.2,0.82436]
[1751383592306,5.85539986,2425.6,2425.2,0.82437]
[1751383592307,0.98369325,2425.5,2425.2,0.82437]
[1751383592494,0.6642,2425.6,2425.2,0.82437]
[1751383592495,0.98369325,2425.4,2425.2,0.82437]
[1751383592804,0.82435,2425.3,2425.1,26.4244]
[1751383593196,0.82438,2425.2,2425.1,26.4244]
[1751383593398,0.82438,2425.2,2425.1,25.6]
[1751383598508,0.82438,2425.2,2425.1,26.42442]
[1751383599006,0.82438,2425.2,2425.1,25.6]
[1751383600608,0.82438,2425.2,2425.1,26.42442]
[1751383601008,0.82438,2425.2,2425.1,25.6]
[1751383601412,0.82438,2425.2,2425.1,26.42442]
[1751383601907,2.0607,2425.6,2424.9,7.93759986]
[1751383602107,0.82439,2425.2,2425.1,0.8244]
[1751383602304,0.6638,2425.6,2425.0,1.3462]
[1751383602508,0.8244,2425.2,2425.1,37.483]
[1751383602707,0.8244,2425.2,2425.1,38.30742]
[1751383603009,0.8244,2425.2,2425.1,37.483]
[1751383603212,0.8244,2425.2,2425.1,38.30742]
[1751383604012,2.06082,2425.4,2424.9,0.6929]
[1751383604310,0.82438,2425.2,2425.1,25.582]
[1751383605012,0.82438,2425.2,2425.1,26.40642]
[1751383605311,0.82438,2425.2,2425.1,26.40639]
[1751383606111,0.82442,2425.1,2425.0,0.82443]
[1751383606316,0.82444,2425.1,2425.0,38.3024]
[1751383606914,0.82444,2425.1,2425.0,37.478]
[1751383607312,0.82444,2425.1,2425.0,38.30245]
[1751383607806,0.82444,2425.1,2425.0,38.30145]
[1751383608819,0.82441,2425.2,2425.1,0.82437]
[1751383609115,0.82441,2425.2,2425.1,26.40337]
[1751383610315,0.82441,2425.2,2425.1,26.40237]
[1751383612722,0.82441,2425.2,2425.1,25.578]
[1751383612922,0.82441,2425.2,2425.1,26.40242]
[1751383616826,0.82429,2425.5,2425.4,0.82428]
[1751383617125,0.82438,2425.2,2425.1,2.17576]
[1751383617317,0.82445,2425.1,2425.0,0.8244]
[1751383617523,0.82445,2425.1,2425.0,38.2854]
[1751383617930,0.82457,2424.8,2424.7,0.82453]
[1751383618322,0.82457,2424.8,2424.6,25.572]
[1751383618323,0.82449,2424.9,2424.8,0.82448]
[1751383618929,0.82449,2424.9,2424.8,26.39548]
[1751383619132,0.82449,2424.9,2424.8,25.571]
[1751383619330,0.82448,2424.9,2424.8,34.01284917]
[1751383619629,0.82448,2425.0,2424.9,0.82447]
[1751383619830,0.82448,2425.0,2424.9,1.48147]
[1751383620130,0.82444,2425.1,2425.0,0.82441]
[1751383620428,2.06088,2425.3,2425.2,0.82436]
[1751383620429,0.82439,2425.3,2425.2,0.82436]
[1751383620725,2.23014,2425.4,2425.3,0.82435]
[1751383620928,0.82429,2425.6,2425.5,0.82426]
[1751383621123,0.82422,2425.7,2425.5,3.0470926]
[1751383621331,0.82423,2425.7,2425.6,0.82422]
[1751383621525,0.82423,2425.7,2425.6,26.39422]
[1751383621721,0.8242,2425.8,2425.7,0.82421]
[1751383621926,0.82421,2425.7,2425.6,26.39422]
[1751383622428,0.82419,2425.8,2425.7,0.82419]
[1751383622628,1.80846318,2425.8,2425.7,0.82419]
[1751383622927,0.98427318,2425.8,2425.7,3.8712826]
[1751383623137,0.82412,2426.0,2425.9,0.82412]
[1751383623336,2.1043,2426.3,2425.9,3.0470926]
[1751383623627,0.82409,2426.1,2426.0,0.82409]
[1751383623928,0.6861,2426.5,2426.2,0.82404]
[1751383624136,0.82402,2426.3,2426.2,0.82402]
[1751383624430,0.6861,2426.5,2426.2,0.82402]
[1751383624634,0.98244309,2426.4,2426.2,0.82402]
[1751383624830,0.6861,2426.5,2426.1,26.2725]
[1751383625031,0.82403,2426.3,2426.1,28.41026]
[1751383625226,2.05961,2426.8,2426.1,27.5862]
[1751383625424,0.98180055,2426.7,2426.1,27.5862]
[1751383625631,0.82399,2426.4,2426.3,0.82399]
[1751383625930,0.82396,2426.5,2426.4,0.82397]
[1751383626136,0.82392,2426.6,2426.5,0.82392]
[1751383626629,0.82392,2426.6,2426.5,1.3137]
[1751383626828,4.10735,2427.0,2426.4,25.567]
[1751383626829,0.82394,2426.5,2426.4,25.567]
[1751383627031,2.05978,2426.6,2426.2,1.3137]
[1751383627235,0.82397,2426.4,2426.3,37.452]
[1751383627727,0.82404,2426.2,2426.1,12.5915]
[1751383627927,0.82404,2426.2,2426.1,38.1545]
[1751383628334,0.82408,2426.1,2426.0,0.7083]
[1751383628726,2.75457,2426.4,2425.8,2.86265]
[1751383628727,0.82414,2425.9,2425.8,2.86265]
[1751383628934,0.82414,2425.9,2425.8,40.31165]
[1751383629430,0.82414,2425.9,2425.8,2.0385]
[1751383629634,0.82418,2425.8,2425.7,1.50091]
[1751383629936,0.82418,2425.9,2425.8,0.82417]
[1751383630331,0.6946,2426.4,2425.7,38.1247]
[1751383630538,0.82414,2426.0,2425.9,0.82413]
[1751383630836,0.82416,2425.9,2425.8,2.19755]
[1751383631834,0.82416,2425.9,2425.8,1.3734]
[1751383632030,2.06022,2426.1,2425.7,12.5627]
[1751383632237,0.82418,2425.8,2425.7,13.38691]
[1751383632429,0.82418,2425.8,2425.7,38.1227]
[1751383633038,0.82418,2425.8,2425.7,26.2357]
[1751383633435,0.82418,2425.8,2425.7,0.6767]
[1751383633639,0.82418,2425.8,2425.7,26.2357]
[1751383633838,0.82418,2425.8,2425.7,27.05991]
[1751383634242,0.82418,2425.8,2425.7,28.48511]
[1751383634741,0.82418,2425.8,2425.7,26.2357]
[1751383634944,0.82418,2425.9,2425.8,0.82417]
[1751383635243,0.82418,2425.8,2425.7,27.05989]
[1751383635535,0.82417,2425.9,2425.8,0.82415]
[1751383636043,0.6832,2426.1,2425.7,29.72141]
[1751383636242,0.82414,2426.0,2425.9,0.82412]
[1751383636439,1.50728,2426.1,2426.0,0.82411]
[1751383636645,8.59964293,2426.4,2426.0,0.82411]
[1751383636646,0.82404,2426.3,2426.2,0.82402]
[1751383636943,0.82407,2426.2,2426.1,0.82405]
[1751383637245,0.82402,2426.3,2426.2,0.82401]
[1751383637741,0.82408,2426.2,2426.1,0.82406]
[1751383639034,0.82404,2426.3,2426.2,0.82402]
[1751383639539,0.824,2426.4,2426.3,0.82398]
[1751383639837,2.05961,2426.8,2426.3,25.555]
[1751383640043,0.82398,2426.5,2426.4,0.82395]
[1751383640438,0.82398,2426.4,2426.3,26.37898]
[1751383641046,0.82396,2426.5,2426.4,0.82394]
[1751383641543,0.82396,2426.5,2426.4,0.82395]
[1751383642348,0.82398,2426.4,2426.3,26.37898]
[1751383643249,2.05987,2426.5,2426.0,1.3342]
[1751383643547,0.82408,2426.1,2426.0,38.25511]
[1751383643748,0.82408,2426.1,2426.0,37.431]
[1751383643948,0.82411,2426.0,2425.9,13.38793]
[1751383644150,0.82411,2426.0,2425.9,38.94093]
[1751383644646,0.82421,2425.8,2425.7,0.82418]
[1751383644847,0.82421,2425.7,2425.6,2.46407657]
[1751383645049,0.82431,2425.4,2425.3,0.0648]
[1751383645249,6.66938293,2425.4,2425.3,0.0648]
[1751383646051,8.03148293,2425.4,2425.3,0.0648]
[1751383647345,13.03148293,2425.4,2425.3,0.0648]
[1751383647651,0.82445,2425.0,2424.9,3.28650079]
[1751383648550,2.18655,2425.0,2424.9,3.28650079]
[1751383648752,0.82448,2424.9,2424.8,15.16450079]
[1751383648952,0.82448,2424.9,2424.8,28.84150079]
[1751383649348,0.82452,2424.8,2424.7,3.28650079]
[1751383649550,2.19842,2424.8,2424.7,3.28650079]
[1751383649956,0.82455,2424.7,2424.6,84.912]
[1751383650144,0.82455,2424.7,2424.6,3.26449527]
[1751383650349,0.82455,2424.7,2424.6,28.81949527]
[1751383650654,0.82459,2424.6,2424.5,28.81849527]
[1751383651052,0.82459,2424.6,2424.5,25.554]
[1751383651854,0.82462,2424.5,2424.4,38.26265]
[1751383652056,0.82462,2424.5,2424.4,37.438]
[1751383652256,0.82462,2424.5,2424.4,38.26265]
[1751383654251,0.82461,2424.6,2424.5,0.82459]
[1751383654758,0.82459,2424.6,2424.5,0.82459]
[1751383654958,0.82457,2424.7,2424.6,0.82459]
[1751383655154,0.82457,2424.7,2424.6,26.38359]
[1751383655456,0.82457,2424.7,2424.6,25.559]
[1751383656853,0.82462,2424.5,2424.4,12.70863]
[1751383657053,0.82462,2424.5,2424.4,38.26863]
[1751383657648,0.82461,2424.6,2424.4,37.444]
[1751383657855,0.82462,2424.5,2424.4,38.26863]
[1751383658456,0.82462,2424.5,2424.4,0.82463]
[1751383658663,0.82462,2424.5,2424.4,25.559]
[1751383659765,0.82462,2424.5,2424.4,26.38365]
[1751383660866,0.82462,2424.5,2424.4,27.82335]
[1751383661370,0.82462,2424.5,2424.4,26.38365]
[1751383662568,0.82461,2424.6,2424.5,0.82456]
[1751383662968,0.82461,2424.6,2424.5,2.26426]
[1751383664261,2.74842,2424.9,2424.5,1.4397]
[1751383664466,0.82459,2424.7,2424.6,26.38555]
[1751383664867,0.82455,2424.8,2424.7,0.82453]
[1751383665272,0.82455,2424.7,2424.6,26.38557]
[1751383665865,2.06142,2424.7,2424.4,1.51404]
[1751383666071,0.82459,2424.6,2424.5,26.38462]
[1751383666372,0.82459,2424.6,2424.5,25.56]
[1751383666874,0.82459,2424.6,2424.5,26.38462]
[1751383667270,0.82457,2424.8,2424.7,0.82453]
[1751383668073,0.82448,2425.0,2424.9,0.82445]
[1751383668271,0.82448,2425.0,2424.9,26.38345]
[1751383668471,0.82448,2425.0,2424.9,25.559]
[1751383668672,0.82448,2425.0,2424.9,26.38348]
[1751383670672,0.82448,2425.0,2424.9,25.559]
[1751383670872,0.82448,2425.0,2424.9,26.38348]
[1751383671273,0.82444,2425.1,2425.0,0.8244]
[1751383672278,0.82444,2425.1,2425.0,2.1653]
[1751383672977,0.82444,2425.1,2425.0,2.16535]
[1751383674179,0.82448,2424.9,2424.8,0.6783]
[1751383674379,0.82448,2424.9,2424.8,38.1113]
[1751383674679,0.82448,2424.9,2424.8,38.9358]
[1751383675981,0.82448,2424.9,2424.8,38.9348]
[1751383676367,0.82448,2424.9,2424.8,0.6783]
[1751383676573,0.82448,2424.9,2424.8,38.93382]
[1751383678779,0.82448,2424.9,2424.8,38.1093]
[1751383679078,0.82448,2424.9,2424.8,27.05282]
[1751383679484,0.82448,2424.9,2424.8,26.2283]
[1751383679784,0.82448,2424.9,2424.8,27.05282]
[1751383679985,0.82448,2424.9,2424.8,1.50282]
[1751383680285,3.87206307,2425.0,2424.9,0.82448]
[1751383680886,0.82447,2425.0,2424.9,0.82448]
[1751383681179,5.82860307,2425.2,2425.0,0.82442]
[1751383681180,0.82442,2425.1,2425.0,0.82442]
[1751383681380,0.8244,2425.2,2425.1,0.82442]
[1751383681586,1.82275069,2425.2,2425.1,0.82442]
[1751383681883,0.8244,2425.2,2425.1,0.82442]
[1751383682080,0.71,2425.6,2425.0,30.65668307]
[1751383682280,0.99827142,2425.5,2425.4,3.87187307]
[1751383682587,0.99827142,2425.5,2425.4,38.24928]
[1751383683087,0.82425,2425.6,2425.5,0.82428]
[1751383683588,0.82437,2425.3,2425.2,12.70235]
[1751383683791,0.82437,2425.3,2425.2,38.24935]
[1751383683987,0.82434,2425.4,2425.3,0.82433]
[1751383684684,2.06065,2425.6,2425.2,37.425]
[1751383684685,0.82435,2425.3,2425.2,37.425]
[1751383684983,0.82435,2425.3,2425.2,0.82438]
[1751383685185,2.06089,2425.3,2425.0,0.82444]
[1751383685383,0.82445,2425.0,2424.9,60.20846]
[1751383685680,0.82445,2425.0,2424.9,97.62846]
[1751383685880,0.82445,2425.0,2424.9,71.261]
[1751383686086,0.82445,2425.0,2424.9,96.804]
[1751383686287,0.82445,2425.0,2424.9,97.62848]
[1751383686483,0.82442,2425.2,2425.1,0.8244]
[1751383686690,0.82442,2425.2,2425.1,26.3674]
[1751383687287,1.54049,2425.5,2425.2,2.06093]
[1751383687590,1.54049,2425.5,2425.4,0.82431]
[1751383687591,0.82429,2425.5,2425.4,0.82431]
[1751383688084,0.99017202,2425.5,2425.4,12.70131]
[1751383688291,0.6598,2426.0,2425.4,19.65819]
[1751383688588,0.82423,2425.8,2425.7,0.82419]
[1751383688788,1.81416539,2425.8,2425.7,26.36619]
[1751383689193,1.81416539,2425.8,2425.7,25.542]
[1751383689391,1.81411539,2425.8,2425.7,25.542]
[1751383689891,1.81411539,2425.8,2425.7,26.36621]
[1751383690089,1.81411539,2425.8,2425.7,25.542]
[1751383690393,1.81411539,2425.8,2425.7,26.36621]
[1751383691088,1.81411539,2425.8,2425.7,25.542]
[1751383691692,1.81421044,2425.8,2425.7,25.542]
[1751383692192,0.82418,2425.8,2425.7,25.542]
[1751383692390,0.82425,2425.6,2425.5,12.70125]
[1751383692598,0.82425,2425.6,2425.5,37.415]
[1751383692789,0.82425,2425.6,2425.5,38.23928]
[1751383693291,0.82428,2425.5,2425.4,0.7204]
[1751383693600,0.82428,2425.5,2425.4,38.23831]
[1751383693783,2.06054,2425.7,2425.1,0.6772]
[1751383693988,0.82437,2425.3,2425.2,38.23634]
[1751383694896,0.82437,2425.3,2425.2,0.82434]
[1751383695093,0.82437,2425.3,2425.2,38.23534]
[1751383696301,0.82434,2425.4,2425.3,0.82431]
[1751383696598,0.82431,2425.5,2425.4,0.82428]
[1751383696793,0.82431,2425.5,2425.4,26.35928]
[1751383696993,0.82431,2425.5,2425.4,25.535]
[1751383697492,1.81517331,2425.5,2425.4,25.535]
[1751383697795,0.82431,2425.4,2425.3,0.82433]
[1751383697995,1.81524279,2425.4,2425.3,26.35833]
[1751383698297,0.82431,2425.4,2425.3,26.35833]
[1751383698695,1.8154881,2425.4,2425.3,27.06793]
[1751383698889,0.9911781,2425.4,2425.3,27.06793]
[1751383699087,1.8154881,2425.4,2425.3,27.06793]
[1751383699297,0.8243,2425.5,2425.4,0.82431]
[1751383700794,0.717,2425.6,2425.3,26.2436]
[1751383700993,0.717,2425.6,2425.5,0.82428]
[1751383701194,0.82423,2425.7,2425.6,0.82425]
[1751383701499,9.22753525,2426.0,2425.5,25.532]
[1751383701700,0.82423,2425.7,2425.6,0.82421]
[1751383702298,0.82419,2425.8,2425.7,0.82417]
[1751383702500,0.82419,2425.8,2425.7,26.35517]
[1751383703001,1.81477545,2425.8,2425.7,26.35517]
[1751383703297,0.99058545,2425.8,2425.7,26.35517]
[1751383703491,0.82417,2425.9,2425.8,0.82418]
[1751383703898,0.82418,2425.8,2425.7,26.35519]
[1751383704098,0.82418,2425.8,2425.7,25.531]
[1751383704594,0.82418,2425.8,2425.7,26.35521]
[1751383704795,0.82418,2425.8,2425.7,25.531]
[1751383704995,0.82418,2425.8,2425.7,26.35521]
[1751383705192,2.06039,2425.9,2425.3,3.1638519]
[1751383705398,0.82427,2425.6,2425.5,0.82424]
[1751383705596,0.82427,2425.6,2425.5,38.22024]
[1751383705796,0.82427,2425.6,2425.5,38.21824]
[1751383708007,2.06039,2425.9,2425.5,37.394]
[1751383708206,0.82425,2425.7,2425.6,0.82422]
[1751383708408,0.82425,2425.6,2425.5,38.21826]
[1751383709603,0.82425,2425.6,2425.5,37.394]
[1751383710108,0.8243,2425.5,2425.4,0.82428]
[1751383710409,0.82427,2425.6,2425.5,0.82426]
[1751383710609,0.82427,2425.6,2425.5,26.34826]
[1751383710911,0.82425,2425.7,2425.6,0.82422]
[1751383711109,0.8242,2425.8,2425.7,0.82417]
[1751383711311,0.8242,2425.8,2425.7,26.34717]
[1751383713104,0.8242,2425.8,2425.7,26.34721]
[1751383713305,0.8242,2425.8,2425.7,25.523]
[1751383713610,2.06051,2425.8,2425.4,0.82429]
[1751383713811,2.06051,2425.8,2425.5,38.21128]
[1751383713812,0.82425,2425.6,2425.5,38.21128]
[1751383714311,0.82432,2425.5,2425.4,0.82431]
[1751383714511,0.82428,2425.5,2425.4,37.386]
[1751383714707,1.52768,2425.5,2425.4,37.386]
[1751383714900,1.52768,2425.5,2425.4,38.21032]
[1751383716009,2.5135825,2425.5,2425.4,38.20932]
[1751383716612,1.52768,2425.5,2425.4,38.20932]
[1751383717111,1.52768,2425.5,2425.4,37.385]
[1751383717318,1.52768,2425.5,2425.4,38.20932]
[1751383717515,1.52768,2425.5,2425.4,37.385]
[1751383717815,2.51392468,2425.5,2425.4,37.385]
[1751383718017,2.51392468,2425.5,2425.4,38.20932]
[1751383719210,0.82427,2425.6,2425.5,0.82422]
[1751383720210,1.81089472,2425.6,2425.5,0.82422]
[1751383720807,0.98662472,2425.6,2425.5,3.8698009]
[1751383721115,0.82421,2425.8,2425.7,0.82419]
[1751383721313,0.82421,2425.8,2425.7,26.34019]
[1751383721616,1.81082038,2425.8,2425.7,26.34019]
[1751383721916,1.81082038,2425.8,2425.7,25.516]
[1751383722117,0.82422,2425.7,2425.6,13.41104]
[1751383722312,1.81083038,2425.7,2425.6,38.92704]
[1751383722514,1.81083038,2425.7,2425.6,38.20724]
[1751383722810,0.8243,2425.6,2425.5,12.69126]
[1751383723016,0.8243,2425.6,2425.5,38.20626]
[1751383723216,0.8243,2425.6,2425.5,37.382]
[1751383723515,0.8243,2425.6,2425.5,0.82428]
[1751383723711,5.1061009,2425.8,2425.7,0.82419]
[1751383723712,0.82423,2425.8,2425.7,0.82419]
[1751383723912,1.80612372,2425.8,2425.7,26.33819]
[1751383724820,0.98189372,2425.8,2425.7,26.33819]
[1751383725926,1.52517,2425.9,2425.8,0.82418]
[1751383726219,2.5067387,2425.9,2425.8,0.82418]
[1751383727118,0.82418,2425.8,2425.7,1.52479]
[1751383727322,1.8057487,2425.8,2425.7,26.33519]
[1751383727524,1.8057487,2425.8,2425.7,25.511]
[1751383727725,1.8057487,2425.8,2425.7,26.33522]
[1751383730826,1.8057487,2425.8,2425.7,0.82422]
[1751383731029,1.8057487,2425.8,2425.7,26.33222]
[1751383731521,0.82428,2425.5,2425.4,2.4542519]
[1751383731726,0.82435,2425.3,2425.2,27.9622519]
[1751383732630,1.80638257,2425.3,2425.2,25.508]
[1751383733322,1.80638257,2425.3,2425.2,26.33239]
[1751383733522,0.82445,2425.0,2424.9,2.4542519]
[1751383733720,0.82445,2425.0,2424.9,27.9602519]
[1751383733923,0.82445,2425.0,2424.9,2.4542519]
[1751383734226,0.82445,2425.0,2424.9,28.7847419]
[1751383734426,0.82445,2425.0,2424.9,26.33049]
[1751383735232,0.82438,2425.3,2425.2,0.82437]
[1751383735429,1.80088848,2425.3,2425.2,0.82437]
[1751383735621,0.82439,2425.2,2425.1,26.3324]
[1751383735929,0.82439,2425.2,2425.1,25.508]
[1751383736226,1.4205,2425.4,2425.1,25.508]
[1751383736227,0.82437,2425.3,2425.2,0.82435]
[1751383736427,1.80088491,2425.3,2425.2,0.82435]
[1751383737030,1.80086491,2425.3,2425.2,0.82435]
[1751383737529,1.3372,2425.7,2425.2,13.2597]
[1751383737530,2.06056,2425.7,2425.2,13.2597]
[1751383737823,0.97602267,2425.6,2425.4,0.8243]
[1751383738028,0.82428,2425.5,2425.4,26.3303]
[1751383738931,0.82428,2425.5,2425.4,26.33032]
[1751383740328,0.82428,2425.5,2425.4,25.506]
[1751383740629,9.27767356,2425.8,2425.5,0.82425]
[1751383740830,0.82428,2425.6,2425.5,0.82425]
[1751383741832,0.82428,2425.6,2425.5,2.17995]
[1751383742726,0.82428,2425.5,2425.4,26.33029]